Cogmind - Beta 16 @@@ ROGUE MODE // 2025.11.15 @ 16:00:18 Player: BlobtheGreat Result: Destroyed by as-31059 with Assembled Rifle Performance ------------- Evolutions (0) 0 Regions Visited (2) 400 Robots Destroyed (37) 185 Value Destroyed (701) 701 Prototype IDs (0) 0 Alien Tech Used (0) 0 Bonus (21) 21 TOTAL SCORE: 1307 Bonus ------- Follower Combat Kills 21 Cogmind --------- Core Integrity 0/250 Matter 56/300 Energy 121/125 System Corruption 1% Temperature Warm (105) Movement Treading (240) Ox1 Location -10/Mines Parts ------- > --- POWER (1) -------- Light Ion Engine > --- PROPULSION (2) --- Light Treads Light Treads > --- UTILITY (2) ------ High-capacity Storage Unit Light Armor Plating > --- WEAPON (2) ------- Improved Light Cannon Improved Light Cannon > --- INVENTORY (20) --- Ion Engine Light Treads Light Treads Light Treads Cooling System Large Storage Unit Huge Storage Unit High-capacity Matter Pod (0) Seismic Detector Field Recycling Unit (0) EM Pulse Gun Beam Cannon Beam Cannon Improved Light Cannon Improved Light Cannon Grenade Launcher Mining Laser Plasma Cutter Peak State ------------ > --- POWER ------------ Light Ion Engine > --- PROPULSION ------- Light Treads Light Treads > --- UTILITY ---------- High-capacity Storage Unit Seismic Detector > --- WEAPON ----------- Improved Light Cannon Improved Light Cannon > --- INVENTORY -------- Ion Engine Aluminum Leg Aluminum Leg Cooling System Small Storage Unit Seismic Detector Light Armor Plating Field Recycling Unit Beam Cannon Beam Cannon Improved Light Cannon Improved Light Cannon Grenade Launcher Mining Laser Plasma Cutter [Rating: 11] Favorites ----------- Power Light Ion Engine Engine Light Ion Engine Propulsion Light Treads Treads Light Treads Utility Seismic Detector Device Seismic Detector Storage High-capacity Storage Unit Protection Light Armor Plating Weapon Improved Light Cannon Energy Gun EM Pulse Gun Ballistic Gun Light Assault Rifle Ballistic Cannon Improved Light Cannon Launcher Grenade Launcher Build | -11 -10 -10 ------- Run | Yrd Mat Min Slots Evolved . | . . . Power . | . . . Propulsion . | . . . Utility . | . . . Weapon . | . . . Parts Attached 15 | 7 3 5 Power 1 | 1 . . Engine 1 | 1 . . Core . | . . . Reactor . | . . . Propulsion 3 | 2 . 1 Treads 3 | 2 . 1 Leg . | . . . Wheel . | . . . Hover . | . . . Flight . | . . . Utility 4 | 2 1 1 Device 1 | 1 . . Storage 2 | 1 1 . Processor . | . . . Hackware . | . . . Protection 1 | . . 1 Artifact . | . . . Weapon 7 | 2 2 3 Energy Gun 1 | . . 1 Energy Cannon . | . . . Ballistic Gun 2 | 2 . . Ballistic Cannon 3 | . 2 1 Launcher 1 | . . 1 Special Weapon . | . . . Impact Weapon . | . . . Slashing Weapon . | . . . Piercing Weapon . | . . . Special Melee Weapon . | . . . Unidentified Prototypes . | . . . Parts Lost 2 | . . 2 Power . | . . . Propulsion . | . . . Utility 1 | . . 1 Weapon 1 | . . 1 Highest Loss Streak 2 | . . 2 To Critical Strikes . | . . . Average Backups 15 | 4 15 19 Power . | . 1 1 Propulsion 2 | 3 2 3 Utility 4 | . 5 6 Weapon 5 | . 6 7 Tool/Special . | . . . Unused Backups 20 | . 5 15 Power 1 | . . 1 Propulsion 6 | . 4 2 Utility 6 | . . 6 Weapon 6 | . 1 5 Tool/Special 1 | . . 1 Average Slot Usage (%) 99 | . 99 99 Engine 14 | . 14 14 Treads 27 | . 27 28 Device 13 | . 14 13 Storage 14 | . 14 14 Ballistic Cannon 27 | . 27 26 Peak Build Rating 11 | 7 11 11 Average Rating 10 | 6 10 10 On Entrance 6 | . 7 11 Avg Prop Armor Cover (%) . | . . . Naked Turns . | . . . Heaviest Build 52 | 12 52 52 Greatest Support 40 | 40 40 40 Greatest Overweight (x) 1 | . 1 1 Average Overweight (x) . | . . 1 Largest Inventory Capacity 20 | 8 20 20 Average Capacity 18 | 7 19 20 Most Carried 20 | 7 20 20 Average Carried 15 | 5 15 19 Final Capacity 20 | 8 20 20 Final Carried 20 | 7 20 18 Class Distribution -------------------- 100% | Mutant Dominant Class ---------------- Mutant | -10/Materials Mutant | -10/Mines Resources | -11 -10 -10 ----------- Run | Yrd Mat Min Matter Collected 805 | 330 371 104 Remotely . | . . . Salvage Created 823 | 155 500 168 Parts 64 | 18 38 8 Haulers Intercepted 1 | . 1 . Recyclers Shooed 1 | 1 . . Parts Field Recycled . | . . . Retrieved Matter . | . . . Parts Self-Destructed . | . . . Prevented . | . . . Parts Restored . | . . . Kills | -11 -10 -10 ------- Run | Yrd Mat Min Combat Hostiles Destroyed 32 | . 16 16 Cannons 25 | . 16 9 AOE 7 | . . 7 Classes Destroyed 10 | 2 7 1 Worker 4 | . 4 . Builder 1 | . 1 . Tunneler 5 | 5 . . Hauler 1 | . 1 . Recycler 2 | 1 1 . Operator 1 | . 1 . Watcher 2 | . 2 . Swarmer 7 | . 6 1 Grunt 14 | . 10 4 Assembled 11 | . . 11 Best Kill Streak 9 | 3 4 9 Combat Bots Only 9 | . 3 9 Max Kills in Single Turn 2 | 1 2 2 Gunslinging . | . . . Exploded 2 | . . 2 Melee . | . . . Uniques/NPCs Destroyed . | . . . Combat | -11 -10 -10 -------- Run | Yrd Mat Min Hostile Shots Fired 105 | . 47 58 Missed 36 | . 13 23 Hits 69 | . 34 35 Melee 6 | . . 6 Projectile 63 | . 34 29 Part Disruptions 1 | . . 1 Damage Taken 941 | . 340 601 Core 250 | . 60 190 Absorbed by Shields . | . . . Regen/Repaired (Parts) 145 | . 145 . Core Remaining (%) 100 | 100 . . Volleys Fired 92 | 15 53 24 Largest 2 | 2 2 2 Hottest 66 | 40 66 66 Shots Fired 175 | 30 106 39 Gun 30 | 30 . . Cannon 139 | . 106 33 Launcher 6 | . . 6 Special . | . . . Kinetic 169 | 30 106 33 Thermal . | . . . Explosive 6 | . . 6 Electromagnetic . | . . . Robot Hit Streak 9 | 9 7 4 Robot Miss Streak 4 | 4 3 3 Penetration Max . | . . . Secondary Targets . | . . . Shots Hit Robots 87 | 20 51 16 Core Hits 62 | 9 26 27 Critical Kills . | . . . Critical Parts Destroyed . | . . . Critical Strikes 3 | . 2 1 Blast 3 | . 2 1 Melee Attacks . | . . . Impact . | . . . Slashing . | . . . Piercing . | . . . Sneak Attacks . | . . . Combat Hostiles . | . . . Follow-up Attacks . | . . . Damage Inflicted 2113 | 209 1114 790 Guns 209 | 209 . . Cannons 1462 | . 1114 348 Explosions 437 | . . 437 Melee . | . . . Ramming 5 | . . 5 Kinetic 1671 | 209 1114 348 Thermal . | . . . Explosive 437 | . . 437 Electromagnetic . | . . . Impact . | . . . Slashing . | . . . Piercing . | . . . Highest Corruption 1 | . 1 1 Average Corruption 1 | . 1 1 Corruption Purged . | . . . Corruption Blocked . | . . . Effects 5 | . 3 2 Message Errors 3 | . 1 2 Matter Fused 1 | . 1 . Heat Flow Errors 1 | . 1 . Overload Shots . | . . . Overflow Damage 20 | . 4 16 Projectiles 20 | . 4 16 Explosions . | . . . Melee . | . . . Knockbacks 12 | . 10 2 Impact 1 | . . 1 Kinetic 10 | . 9 1 Secondary 1 | . 1 . Self-Inflicted Damage 28 | . . 28 Shots 2 | . . 2 Rammed 1 | . . 1 Targets Rammed 1 | . . 1 Kicked . | . . . Crushed . | . . . Highest Temperature 245 | . 245 85 Average Temperature 23 | . 22 26 Received Heat Transfer 273 | . 132 141 Siege Activations . | . . . Martial Activations . | . . . Shielding Activations . | . . . Robots Disrupted . | . . . Combat Hostiles . | . . . Robots Corrupted . | . . . Combat Hostiles . | . . . Parts Fried . | . . . Impact Corruptions . | . . . Robots Melted . | . . . Combat Hostiles . | . . . Parts Melted . | . . . Heat Transferred . | . . . Parts Sabotaged . | . . . Parts Stolen . | . . . Parts Stripped . | . . . Power Chain Reactions . | . . . Alert | -11 -10 -10 ------- Run | Yrd Mat Min Maximum Alert Level . | . . . Low Security (%) 100 | 100 100 100 Level 1 . | . . . Level 2 . | . . . Level 3 . | . . . Level 4 . | . . . Level 5 . | . . . High Security . | . . . Max Security . | . . . Peak Influence 135 | 5 102 135 Initial 23 | . . 23 Average 32 | . 30 69 Influence Increases 823 | 30 517 276 Destroy 0b10 Robot/C 480 | . 320 160 Destroy 0b10 Robot/NC 80 | 30 50 . Destroy Leader 106 | . 76 30 Allied During Kill 11 | . . 11 Successful Hack 2 | . 2 . Select Force Hacks 30 | . 30 . Disable Machine 15 | . 15 . Destroy Structure 39 | . 9 30 Lose Combat Pursuer 60 | . 15 45 Influence Decreases 739 | 30 456 253 Entered New Map 38 | . . 38 Time Decay 657 | 30 456 171 Lost Part 20 | . . 20 Lost Ally 24 | . . 24 Squads Dispatched 4 | . 4 . Investigation 2 | . 2 . Extermination . | . . . Reinforcement 2 | . 2 . Assault . | . . . Garrison . | . . . Intercept . | . . . Searches Triggered . | . . . Construction Impeded . | . . . Haulers Reinforced . | . . . Active Scanning Responses . | . . . Cargo Convoy Interrupts . | . . . Stealth | -11 -10 -10 --------- Run | Yrd Mat Min Distress Signals 2 | . 1 1 Communications Jammed . | . . . Distress Signals . | . . . Times Spotted 52 | . 26 26 Peak Tracking Total 7 | . 3 7 Tactical Retreats 3 | . 1 2 Traps | -11 -10 -10 ------- Run | Yrd Mat Min Traps Triggered 2 | . 2 . Indirectly . | . . . Trap Hack Attempts . | . . . Triggered . | . . . Disarmed . | . . . Reprogrammed . | . . . Reused . | . . . Traps Extracted . | . . . Installed . | . . . Triggered . | . . . Machines | -11 -10 -10 ---------- Run | Yrd Mat Min Machines Disabled 1 | . 1 . Max in Single Turn 1 | . 1 . Machines Repaired . | . . . Machines Dismantled . | . . . Machines Sabotaged . | . . . Overloaded Fab Kills . | . . . Hacking | -11 -10 -10 --------- Run | Yrd Mat Min Machines Accessed 6 | . 6 . Terminals 4 | . 4 . Fabricators . | . . . Repair Stations 1 | . 1 . Recycling Units 1 | . 1 . Scanalyzers . | . . . Garrison Access . | . . . Total Hacks 12 | . 12 . Successful 6 | . 6 . Failed 6 | . 6 . Catastrophic . | . . . Database Lockouts . | . . . Manual 8 | . 8 . Terminals 6 | . 6 . Fabricators . | . . . Repair Stations 4 | . 4 . Recycling Units 2 | . 2 . Scanalyzers . | . . . Garrison Access . | . . . Terminal Hacks 1 | . 1 . Robot Analysis 1 | . 1 . Fabricator Hacks . | . . . Repair Station Hacks 4 | . 4 . Scan Component 2 | . 2 . Repair 2 | . 2 . Recycling Unit Hacks . | . . . Scanalyzer . | . . . Garrison Access Hacks . | . . . Unauthorized Hacks 1 | . 1 . Terminals . | . . . Fabricators . | . . . Repair Stations . | . . . Recycling Units 1 | . 1 . Tunnel 1 | . 1 . Scanalyzers . | . . . Garrison Access . | . . . Data Cores Recovered . | . . . Used . | . . . Hacking Detections 4 | . 4 . Full Trace Events . | . . . Feedback Events . | . . . Feedback Blocked . | . . . Robot Schematics Acquired . | . . . Robots Built . | . . . Authchips . | . . . Time . | . . . Total Robot Build Rating . | . . . Part Schematics Acquired . | . . . Parts Built . | . . . Authchips . | . . . Time . | . . . Total Part Build Rating . | . . . Part Studies Acquired . | . . . Parts Repaired 2 | . 2 . Time 52 | . 52 . Parts Recycled . | . . . Recycled Matter . | . . . Retrieved Matter . | . . . Retrieved Components . | . . . Parts Scanalyzed . | . . . Part Schematics Acquired . | . . . Parts Damaged . | . . . Bothacking | -11 -10 -10 ------------ Run | Yrd Mat Min Used RIF Installer . | . . . Robots Hacked . | . . . Non-combat . | . . . Combat . | . . . Robot Hacks Applied . | . . . Relay Couplers Released . | . . . Fabnet Peak Effective % . | . . . Robots Rewired . | . . . Allies Hacked . | . . . Hacks Repelled . | . . . Allies | -11 -10 -10 -------- Run | Yrd Mat Min Total Allies 3 | . . 3 Largest Group 3 | . . 3 Highest-Rated Group 40 | . . 40 Highest-Rated Ally 16 | . . 16 Total Orders . | . . . Ally Attacks 11 | . . 11 Total Damage 123 | . . 123 Kills 3 | . . 3 Allies Corrupted . | . . . Allies Melted . | . . . Intel | -11 -10 -10 ------- Run | Yrd Mat Min Active Infowar (turns) 2449 | 120 1967 362 Seismic 2449 | 120 1967 362 Robot Analysis Total 1 | . 1 . Derelict Logs Recovered 1 | . . 1 Drone Launches . | . . . Drone Recoveries . | . . . Exploration | -11 -10 -10 ------------- Run | Yrd Mat Min Turns Passed 2602 | 262 1967 373 Spaces Moved 974 | 128 724 122 Core 1 | 1 . . Treads 973 | 127 724 122 Legs . | . . . Wheels . | . . . Hover . | . . . Flight . | . . . Fastest Speed 50 | 50 160 240 Average Speed 226 | 159 236 240 Slowest Speed 240 | 160 240 240 Overloaded Moves . | . . . Propulsion Burnouts . | . . . Robots Hopped . | . . . Potential Cave-ins . | . . . Cave-ins Triggered . | . . . Exploration Rate (%) 44 | 8 96 30 Regions Visited 2 Branch Regions 1 Pre-discovered Areas 2 | . 1 1 Known Exits Taken . | . . . Unknown Exits Taken 2 | 1 1 . Scrap Searched . | . . . Spaces Dug 20 | . . 20 Terrain Destroyed 46 | . 5 41 Melee . | . . . Projectile 10 | . 5 5 AOE 36 | . . 36 Terrain Rammed . | . . . Walls Destroyed . | . . . Machines Disabled . | . . . Actions | -11 -10 -10 --------- Run | Yrd Mat Min Total 1195 | 156 877 162 Wait 77 | . 68 9 Move 972 | 127 723 122 Hop . | . . . Pick Up 27 | 7 20 . Fast Attach 9 | 7 2 . Attach 4 | . 2 2 Detach . | . . . Swap 5 | . 1 4 Drop 8 | . 8 . Fire 92 | 15 53 24 Melee . | . . . Ram . | . . . Kick . | . . . Crush 1 | . . 1 Escape Stasis . | . . . Rewire . | . . . Trap . | . . . Miscellaneous . | . . . Route ------- -11/Scrapyard -10/Materials (discovered 5 exits: [*Mat x3] / [*Min x2]) -10/Mines (discovered 1 exit: [*Mat]) History --------- Turn | Location | Event 19 | -11/Scrapyard | Discovered new exit (range 13) 263 | -11/Scrapyard | Entered Materials 314 | -10/Materials | Build established: Mutant 562 | -10/Materials | Discovered new exit (range 5) 1000 | -10/Materials | Discovered new exit (range 7) 1188 | -10/Materials | Discovered new exit (range 16) 1236 | -10/Materials | Discovered new exit (range 10) 1688 | -10/Materials | Repaired Lgt. Treads 1716 | -10/Materials | Repaired Lgt. Treads 1872 | -10/Materials | Discovered new exit (range 8) 2230 | -10/Materials | Entered Mines 2238 | -10/Mines | Assisted by bots powering up and referring to "LRC-V3" 2245 | -10/Mines | Met a Derelict bent on vengeance 2389 | -10/Mines | Discovered new exit (range 13) 2434 | -10/Mines | Lost 3 allies 2460 | -10/Mines | Learned location of Mines (-9) 2501 | -10/Mines | Assembled infested the area 2506 | -10/Mines | Assisted by a Guerilla fighting off Assembled 2533 | -10/Mines | Received a Rocket Launcher from a helpful Derelict 2566 | -10/Mines | Core integrity fell below 50% 2598 | -10/Mines | Destroyed 9 combat bots 2601 | -10/Mines | Core integrity fell below 20% 2603 | -10/Mines | Destroyed by as-31059 with Assembled Rifle Last Messages --------------- 02552_ U-05 Engineer destroyed. 02553_ as-88640 destroyed. 02558_ as-37248 destroyed. 02561_ U-05 Engineer destroyed. 02564_ as-91355 destroyed. 02564_ as-96696 destroyed. 02566_ as-13625 destroyed. 02566_ as-80818 destroyed. 02567_ EM Pulse Gun destroyed. 02570_ as-52839 destroyed. 02573_ The unstable cave ceiling collapses. 02573_ as-54109 destroyed. 02577_ as-80415 destroyed. 02586_ The unstable cave ceiling collapses. 02592_ Seismic Detector destroyed. 02594_ as-07153 suffers critical hit (Blast). 02594_ as-07153 knocked back. 02600_ Destroyed Asb. Hover Unit. 02600_ as-07153 destroyed. 02603_ as-61196 destroyed. Map ----- +----------------------------------------------------+ | ???????????????????????????# #?????##????????????? | | ???????????????????????????# #??? #????????????? | | ????????????????# #### #?? ##??????????? | | ?????????????????# ## #??????????? | | ??????????????????# ###### %= #?????????? | | ???????????????????????????# ## #?????? | | ???????????????????????????# #?? #?????? | | ???????????????????????????# #??? ?? ??????? | | ???????????????????????????# #????? ??????????? | | ?????????????????????####### #?????? ????????? | | ?????????????????????# #??????? ???????? | | ?????????????????????# #######????????? ????????? | | ?????????????????????# #???????????????? ????????? | | ?????????????????????# #?????????????????????????? | | ?????????????????????# #?????????????????????????? | | ?????????????????????# #?????????????????????????? | | ?????????????????????# #?????????????????????????? | | ?????????????????????# #?????????????????????????? | | ?????????????????????# #######???????????????????? | | ?????????????????????# #???????????????????? | | ?????????????????????# ## #???????????????????? | | ????????????????????## #####???????????????? | | ????????????????????# # ###?????????????? | | ???????????????????## % # ###???????????? | | ???????????????##### =%u ????????? | | ???????????????# %@ %%*! ????????? | | ???????????????# % % #????????????? | | ?????????? ##### #;# % % # #????????????? | | ????????# ######?????#?###%% a% ##????????????? | | ?????????????????????????? #?????????????? | | ??????????????????????????# a # #????????????? | | ???????????????????????????; % # #????????????? | | ???????????????????????????# ##?# #????????????? | | ???????????????????????????? #???? #????????????? | | ???????????????????????????? #??????????????????? | | ?????????????????????????????a#??????????????????? | | ????????????????????????????? ??????????????????? | | ????????????????????????????? ??????????????????? | | ?????????????????????????????? ?????????????????? | | ?????????????????????????????????????????????????? | | ?????????????????????????????????????????????????? | | ?????????????????????????????????????????????????? | | ?????????????????????????????????????????????????? | | ?????????????????????????????????????????????????? | | ?????????????????????????????????????????????????? | | ?????????????????????????????????????????????????? | | ?????????????????????????????????????????????????? | | ?????????????????????????????????????????????????? | | ?????????????????????????????????????????????????? | | ?????????????????????????????????????????????????? | +----------------------------------------------------+ Best States ------------- Heat Dissipation 25 Energy Generation 10 Energy Capacity 125 Matter Stores 300 Matter Capacity 300 Sight Range 16 Terrain Scan Density 10 Armor Coverage 150 Evasion (%) 40 Recoil Reduction 2 Item Schematics ----------------- None Robot Schematics ------------------ None Fabricated ------------ Nothing Repaired ---------- Lgt. Treads | 33% | -10/Materials Lgt. Treads | 62% | -10/Materials Studied --------- None Alien Tech Used ----------------- None Achievements -------------- None Challenges ------------ None Game ------ Seed ChromaticPowerRailgun Manual? 0 Play Time 00:10:45 Cumulative 182.2 hours Start 2025.11.15 @ 15:51:40 End 2025.11.15 @ 16:00:18 Sessions 1 Manual Loads 0 Difficulty Rogue Special Mode None Game No. 174 Rogue 174 Adventurer 0 Explorer 0 Win Type - Total 6 Types 5/0/1/0/0/0/0/0/0/0 Lore% 81 Gallery% 70 Achievement% 53 Wizard Run 0 Options --------- Layout 1 ASCII 0 Keyboard 1 Movement Arrows Keybinds 0 Fullscreen 1 Font 24/Smallcaps Map View 50x40 Zoom Use 0% Tactical HUD 1 Map Filters NONE Filters NONE Steam 1 RUN: 3515b60d-18d6-4f65-b555-5cf4d8c13644